Cogmind - Beta 16.1 @@@ ROGUE MODE // 2026.02.12 @ 21:11:21 Player: Minty Result: Destroyed by H-66 Slayer with Heavy Assault Rifle Performance ------------- Evolutions (5) 2500 Regions Visited (12) 2400 Robots Destroyed (82) 410 Value Destroyed (3535) 3535 Prototype IDs (32) 640 Alien Tech Used (0) 0 Bonus (6820) 6820 TOTAL SCORE: 16305 Bonus ------- Triggered High Security 500 High Alert Combat Kills 1444 Follower Combat Kills 4184 Entered Garrisons 200 Used RIF Installer 1000 Friendly Fire -508 Cogmind --------- Core Integrity 0/1000 Matter 300/300 Energy 35/100 System Corruption 30% Temperature Cool (0) Movement Core (50) Location -5/Factory Parts ------- > --- POWER (1) -------- (None) > --- PROPULSION (5) --- (None) > --- UTILITY (5) ------ Relay Coupler [Hunter] (16) > --- WEAPON (6) ------- (None) > --- INVENTORY (5) ---- F-cell Engine Relay Coupler [Grunt] (30) Relay Coupler [Brawler] (32) Relay Coupler [Sentry] (26) Relay Coupler [Sentry] (26) Peak State ------------ > --- POWER ------------ F-cell Engine > --- PROPULSION ------- Thunder Leg Thunder Leg Thunder Leg Cargo Legs > --- UTILITY ---------- Small Storage Unit Energy Well Matter Compressor Experimental Utility Shielding Improved Medium Armor Plating Hacking Suite > --- WEAPON ----------- Long-range Proton Cannon 1B-0RG's Assimilator > --- INVENTORY -------- Light Nuclear Core F-cell Engine Compact Matter Pod Enhanced Optical Array Experimental Utility Shielding Force Rifle Proton Missile Launcher Grenade Launcher [Rating: 138] Favorites ----------- Power F-cell Engine Engine F-cell Engine Power Core Neutrino Core Propulsion Thunder Leg Treads Light Treads Leg Thunder Leg Hover Unit Improved Hover Unit Utility Small Storage Unit Device Improved Reaction Control System Storage Small Storage Unit Processor Improved Targeting Computer Hackware Hacking Suite Protection Improved Light Armor Plating Weapon 1B-0RG's Assimilator Energy Gun Medium Laser Energy Cannon Long-range Proton Cannon Ballistic Gun Light Assault Rifle Launcher Proton Missile Launcher Special Melee Weapon 1B-0RG's Assimilator Build | -11 -10 -10 -8 -7 -7 -7 -6 -6 -6 -5 -5 -5 ------- Run | Yrd Mat Sub Mat Fac Low Low Fac Was Fac Fac Gar Fac Slots Evolved 10 | . . . 4 2 . . 2 . . 2 . . Power . | . . . . . . . . . . . . . Propulsion 3 | . . . . 2 . . . . . 1 . . Utility 3 | . . . 1 . . . 1 . . 1 . . Weapon 4 | . . . 3 . . . 1 . . . . . Parts Attached 63 | . 14 2 4 4 3 . 5 2 4 11 6 8 Power 6 | . 1 . 1 . 2 . . . 2 . . . Engine 4 | . 1 . 1 . . . . . 2 . . . Core 2 | . . . . . 2 . . . . . . . Reactor . | . . . . . . . . . . . . . Propulsion 25 | . 6 1 . 4 . . 1 1 1 4 4 3 Treads 1 | . 1 . . . . . . . . . . . Leg 22 | . 3 1 . 4 . . 1 1 1 4 4 3 Wheel . | . . . . . . . . . . . . . Hover 2 | . 2 . . . . . . . . . . . Flight . | . . . . . . . . . . . . . Utility 20 | . 2 . 2 . 1 . 2 1 1 6 2 3 Device 5 | . 1 . . . . . 1 1 . 1 . 1 Storage 3 | . . . 1 . . . . . 1 1 . . Processor 2 | . 1 . . . . . . . . . 1 . Hackware 3 | . . . 1 . . . . . . . 1 1 Protection 7 | . . . . . 1 . 1 . . 4 . 1 Artifact . | . . . . . . . . . . . . . Weapon 12 | . 5 1 1 . . . 2 . . 1 . 2 Energy Gun 6 | . 4 1 . . . . 1 . . . . . Energy Cannon 3 | . . . . . . . . . . 1 . 2 Ballistic Gun . | . . . . . . . . . . . . . Ballistic Cannon . | . . . . . . . . . . . . . Launcher 2 | . 1 . . . . . 1 . . . . . Special Weapon . | . . . . . . . . . . . . . Impact Weapon . | . . . . . . . . . . . . . Slashing Weapon . | . . . . . . . . . . . . . Piercing Weapon . | . . . . . . . . . . . . . Special Melee Weapon 1 | . . . 1 . . . . . . . . . Unidentified Prototypes 7 | . . . 1 . . . 1 1 2 1 . 1 Corrupted Parts 3 | . . . . . . . . . . 1 2 . System Corruption 23 | . . . . . . . . . . 3 20 . Parts Lost 20 | . 1 2 . . 1 1 . . 1 2 2 10 Power 3 | . 1 1 . . 1 . . . . . . . Propulsion 7 | . . . . . . 1 . . . . . 6 Utility 7 | . . . . . . . . . 1 2 1 3 Weapon 3 | . . 1 . . . . . . . . 1 1 Highest Loss Streak 9 | . 1 2 . . 1 1 . . 1 1 1 9 To Critical Strikes . | . . . . . . . . . . . . . Average Backups 6 | 6 6 7 4 3 3 5 5 7 6 7 7 8 Power . | 1 . . . . . 1 1 1 1 2 1 1 Propulsion . | 4 4 3 1 . . . . . . . . . Utility 2 | . . . . . . . . 1 1 2 5 6 Weapon 2 | 1 . 2 2 3 3 4 4 5 3 2 1 . Tool/Special . | . . . . . . . . . . . . . Unused Backups 17 | . 4 1 2 . . . . . 1 1 2 6 Power 1 | . . . . . . . . . . . . 1 Propulsion 5 | . 3 . 2 . . . . . . . . . Utility 7 | . . . . . . . . . . . 2 5 Weapon 4 | . 1 1 . . . . . . 1 1 . . Tool/Special . | . . . . . . . . . . . . . Average Slot Usage (%) 67 | . 90 87 42 59 62 60 54 64 66 70 71 73 Engine 4 | . 13 5 6 6 2 . . . 2 5 5 4 Core 1 | . . . . . 3 6 5 5 2 . . . Leg 18 | . 24 1 7 19 20 13 12 17 16 20 25 26 Hover 1 | . 3 25 . . . . . . . . . . Device 1 | . 3 . . . . . . 5 5 5 . . Storage 13 | . 14 13 11 13 13 13 11 10 11 11 16 17 Processor 2 | . 1 13 7 6 6 6 4 . . . . . Hackware 3 | . . . . 6 6 6 5 5 5 5 2 5 Protection 5 | . . . . . 2 6 5 11 10 9 7 4 Energy Gun 3 | . 26 19 . . . . . . . . . . Energy Cannon 1 | . . . . . . . . . . 2 3 5 Launcher 1 | . . 8 . . . . . . 2 2 . . Special Melee Weapon 4 | . . . 6 6 6 6 5 5 5 5 5 5 Peak Build Rating 138 | 6 13 29 96 102 107 107 116 120 126 138 138 130 Average Rating 101 | 6 7 14 91 101 102 104 106 117 122 130 129 124 On Entrance 83 | 6 6 13 29 96 102 107 104 116 120 123 138 129 Avg Prop Armor Cover (%) 6 | . 9 . . . . . . . 4 . . . Naked Turns . | . . . . . . . . . . . . . Heaviest Build 100 | 11 15 14 70 70 78 78 85 82 93 100 99 99 Greatest Support 126 | 20 20 55 55 90 90 90 95 100 100 126 124 109 Greatest Overweight (x) 1 | . 1 . 1 . . 1 1 1 1 . 1 1 Average Overweight (x) . | . . . 1 . . . . . . . . . Largest Inventory Capacity 8 | 8 8 8 8 8 8 8 8 8 8 8 8 8 Average Capacity 7 | 8 8 8 8 8 8 8 8 8 8 8 8 7 Most Carried 8 | 6 8 8 8 4 5 5 7 8 8 8 8 8 Average Carried 6 | 6 6 7 4 3 3 5 5 7 7 7 7 7 Final Capacity 8 | 8 8 8 8 8 8 8 8 8 8 8 8 5 Final Carried 8 | 6 8 8 5 3 5 5 7 8 8 8 8 5 Class Distribution -------------------- 100% | Mutant Dominant Class ---------------- Mutant | -10/Materials Mutant | -10/Subcaves Mutant | -8/Materials Mutant | -7/Factory Mutant | -7/Lower Caves Mutant | -7/Lower Caves Mutant | -6/Factory Mutant | -6/Waste Mutant | -6/Factory Mutant | -5/Factory Mutant | -5/Garrison Mutant | -5/Factory Resources | -11 -10 -10 -8 -7 -7 -7 -6 -6 -6 -5 -5 -5 ----------- Run | Yrd Mat Sub Mat Fac Low Low Fac Was Fac Fac Gar Fac Matter Collected 7993 | 200 99 132 503 251 904 90 281 70 783 2048 1340 1292 Remotely . | . . . . . . . . . . . . . Salvage Created 3348 | . 360 158 . . 116 . 122 . 114 1337 540 601 Parts 163 | . 36 11 . . 2 . 3 . 10 54 22 25 Haulers Intercepted 3 | . 1 . . . . . . . . 1 . 1 Recyclers Shooed 2 | . 2 . . . . . . . . . . . Parts Field Recycled . | . . . . . . . . . . . . . Retrieved Matter . | . . . . . . . . . . . . . Parts Self-Destructed 25 | . . 7 . . 18 . . . . . . . Prevented . | . . . . . . . . . . . . . Parts Restored . | . . . . . . . . . . . . . Kills | -11 -10 -10 -8 -7 -7 -7 -6 -6 -6 -5 -5 -5 ------- Run | Yrd Mat Sub Mat Fac Low Low Fac Was Fac Fac Gar Fac Combat Hostiles Destroyed 56 | . 13 4 . . 2 . 1 . 2 17 10 7 Melee 2 | . . . . . 1 . . . . . . 1 Guns 12 | . 10 2 . . . . . . . . . . Cannons 5 | . . . . . . . . . . 3 1 1 AOE 33 | . 3 2 . . . . 1 . 2 12 8 5 Classes Destroyed 18 | . 6 1 . . 1 . . . 1 5 . 4 Worker 6 | . 1 . . . . . . . 1 1 . 3 Builder 7 | . 1 . . . . . 1 . 1 2 . 2 Tunneler 1 | . . . . . . . . . . . . 1 Hauler 4 | . 1 . . . . . . . . 2 . 1 Recycler 1 | . . . . . . . . . . . . 1 Mechanic 1 | . . . . . . . . . . 1 . . Watcher 2 | . 2 . . . . . . . . . . . Swarmer 17 | . 9 . . . . . . . . 5 3 . Saboteur 1 | . . . . . . . . . . . . 1 Grunt 23 | . 4 2 . . 2 . 1 . 1 5 7 1 Brawler 5 | . . . . . . . . . . 2 . 3 Duelist 3 | . . . . . . . . . . 2 . 1 Protector 1 | . . . . . . . . . . . . 1 Sentry 4 | . . . . . . . . . . 4 . . Demolisher 1 | . . . . . . . . . 1 . . . Hunter 2 | . . . . . . . . . . 1 . 1 Subdweller 2 | . . 2 . . . . . . . . . . Samaritan 1 | . . . . . 1 . . . . . . . Savage 1 | . . . . . . . . . . 1 . . Best Kill Streak 8 | . 5 2 . . 1 . 2 . 3 8 7 8 Combat Bots Only 7 | . 4 2 . . 1 . 1 . 1 6 7 5 Max Kills in Single Turn 7 | . 2 1 . . 1 . 2 . 2 3 3 7 Gunslinging . | . . . . . . . . . . . . . Exploded 5 | . 2 1 . . . . 1 . 1 2 3 5 Melee 1 | . . . . . 1 . . . . . . 1 Uniques/NPCs Destroyed . | . . . . . . . . . . . . . Combat | -11 -10 -10 -8 -7 -7 -7 -6 -6 -6 -5 -5 -5 -------- Run | Yrd Mat Sub Mat Fac Low Low Fac Was Fac Fac Gar Fac Hostile Shots Fired 544 | . 58 14 12 . 55 9 9 . 13 118 39 217 Missed 198 | . 26 4 5 . 16 4 1 . 5 48 11 78 Hits 346 | . 32 10 7 . 39 5 8 . 8 70 28 139 Projectile 346 | . 32 10 7 . 39 5 8 . 8 70 28 139 AOE 7 | . . 3 . . . . . . 3 . . 1 Critical Strikes 11 | . . . . . 1 . . . . 2 2 6 Actively Blocked 1 | . . . . . . . . . . 1 . . Damage Taken 6665 | . 385 335 134 16 588 50 155 . 349 1610 535 2508 Core 1385 | . 97 104 71 16 66 6 6 . 8 341 107 563 Absorbed by Shields 656 | . . . . . . . . . . 175 159 322 Redirected to Shielding 289 | . . . . . . . . . 77 103 33 76 Regen/Repaired (Parts) 1778 | . . . 33 . 83 80 58 107 190 557 181 489 Core Remaining (%) 78 | 100 . 19 87 . . 87 . . 98 . . . Volleys Fired 188 | . 41 12 . . . . 5 . 7 60 22 41 Largest 2 | . 2 2 . . . . 1 . 1 1 1 1 Hottest 112 | . 100 112 . . . . 80 . 39 81 81 90 Shots Fired 238 | . 80 21 . . . . 5 . 7 61 23 41 Gun 97 | . 76 16 . . . . 2 . . 3 . . Cannon 90 | . . . . . . . . . . 36 13 41 Launcher 51 | . 4 5 . . . . 3 . 7 22 10 . Special . | . . . . . . . . . . . . . Kinetic 1 | . 1 . . . . . . . . . . . Thermal 110 | . 75 16 . . . . 2 . . 3 . 14 Explosive 13 | . 4 5 . . . . . . . . 4 . Electromagnetic 114 | . . . . . . . 3 . 7 58 19 27 Robot Hit Streak 10 | . 8 10 . . . . 6 . 3 4 5 3 Robot Miss Streak 4 | . 3 1 . . . . 1 . 1 4 2 4 Penetration Max . | . . . . . . . . . . . . . Secondary Targets 1 | . 1 . . . . . . . . . . . Max Gunslinging Chain 1 | . 1 . . . . . . . . . . . Shots Hit Robots 127 | . 43 15 . . . . 3 . 5 31 13 17 Core Hits 151 | . 23 7 . 1 5 . 6 . 10 51 23 25 Critical Kills . | . . . . . . . . . . . . . Critical Parts Destroyed . | . . . . . . . . . . . . . Critical Strikes 6 | . 3 3 . . . . . . . . . . Burn 6 | . 3 3 . . . . . . . . . . Melee Attacks . | . . . . . . . . . . . . . Impact . | . . . . . . . . . . . . . Slashing . | . . . . . . . . . . . . . Piercing . | . . . . . . . . . . . . . Sneak Attacks . | . . . . . . . . . . . . . Combat Hostiles . | . . . . . . . . . . . . . Follow-up Attacks . | . . . . . . . . . . . . . Damage Inflicted 9900 | . 839 319 . 67 206 . 265 . 462 4201 1142 2399 Guns 832 | . 561 196 . . . . 47 . . 28 . . Cannons 1813 | . . . . . . . . . . 751 214 848 Explosions 6942 | . 278 123 . . . . 218 . 462 3382 928 1551 Melee . | . . . . . . . . . . . . . Ramming 313 | . . . . 67 206 . . . . 40 . . Kinetic . | . . . . . . . . . . . . . Thermal 3329 | . 561 196 . . . . 47 . . 1622 69 834 Explosive 1816 | . 278 123 . . . . . . . 257 318 840 Electromagnetic 4442 | . . . . . . . 218 . 462 2282 755 725 Impact . | . . . . . . . . . . . . . Slashing . | . . . . . . . . . . . . . Piercing . | . . . . . . . . . . . . . Highest Corruption 30 | . . . . . . . . . . 6 26 30 Average Corruption 15 | . . . . . . . . . . 4 16 26 Corruption Purged . | . . . . . . . . . . . . . Corruption Blocked . | . . . . . . . . . . . . . Effects 93 | . . . . . . . . . . 20 35 38 Message Errors 21 | . . . . . . . . . . 5 7 9 Matter Fused 18 | . . . . . . . . . . 5 7 6 Heat Flow Errors 10 | . . . . . . . . . . 2 6 2 Energy Discharges 10 | . . . . . . . . . . 1 4 5 Parts Rejected 1 | . . . . . . . . . . . . 1 Data Loss (minor) 16 | . . . . . . . . . . 3 5 8 Data Loss (major) 5 | . . . . . . . . . . . 2 3 Misfires 4 | . . . . . . . . . . 1 1 2 Alerts 4 | . . . . . . . . . . 3 1 . Misdirections 2 | . . . . . . . . . . . 2 . Weapon Failures 2 | . . . . . . . . . . . . 2 Overload Shots . | . . . . . . . . . . . . . Overflow Damage 247 | . . . . . 16 . . . . 115 . 116 Projectiles 33 | . . . . . . . . . . 25 . 8 Explosions 198 | . . . . . . . . . . 90 . 108 Melee 16 | . . . . . 16 . . . . . . . Knockbacks 4 | . . . . 2 2 . . . . . . . Impact 4 | . . . . 2 2 . . . . . . . Kinetic . | . . . . . . . . . . . . . Secondary . | . . . . . . . . . . . . . Self-Inflicted Damage 468 | . 32 39 . . . . . . 17 292 20 68 Shots 17 | . 1 2 . . . . . . 1 11 1 1 Rammed . | . . . . . . . . . . . . . Targets Rammed 36 | . . . . 8 25 . . . . 3 . . Kicked 36 | . . . . 8 25 . . . . 3 . . Crushed . | . . . . . . . . . . . . . Highest Temperature 272 | . 206 38 . . . . 70 . 219 272 265 219 Average Temperature 65 | . 79 17 . . . . 39 . 108 56 72 57 Received Heat Transfer 1617 | . 60 63 63 . 261 18 45 . 75 189 211 632 Effects 1 | . . . . . . . . . 1 . . . Energy Bleed 1 | . . . . . . . . . 1 . . . Siege Activations . | . . . . . . . . . . . . . Martial Activations . | . . . . . . . . . . . . . Shielding Activations . | . . . . . . . . . . . . . Robots Disrupted . | . . . . . . . . . . . . . Combat Hostiles . | . . . . . . . . . . . . . Robots Corrupted 7 | . . . . . 2 . . . . 2 1 2 Combat Hostiles 4 | . . . . . 1 . . . . 2 1 . Parts Fried 11 | . . . . . . . . . . 5 3 3 Impact Corruptions 2 | . . . . . 2 . . . . . . . Robots Melted 1 | . 1 . . . . . . . . . . . Combat Hostiles . | . . . . . . . . . . . . . Parts Melted 10 | . 6 1 . . . . . . . 2 1 . Heat Transferred 4804 | . 1887 703 . . . . 74 . . 1387 50 703 Parts Sabotaged . | . . . . . . . . . . . . . Parts Stolen . | . . . . . . . . . . . . . Parts Stripped . | . . . . . . . . . . . . . Power Chain Reactions 9 | . . . . . . . . . . 7 2 . Alert | -11 -10 -10 -8 -7 -7 -7 -6 -6 -6 -5 -5 -5 ------- Run | Yrd Mat Sub Mat Fac Low Low Fac Was Fac Fac Gar Fac Maximum Alert Level 5 | . . . . . . . 1 . 3 5 5 5 Low Security (%) 43 | 100 100 . 100 100 . . 54 100 48 . . . Level 1 8 | . . . . . . . 45 . 41 . . . Level 2 1 | . . . . . . . . . 2 9 . . Level 3 2 | . . . . . . . . . 8 5 . . Level 4 12 | . . . . . . . . . . 45 24 8 Level 5 25 | . . . . . . . . . . 39 75 48 High Security 5 | . . . . . . . . . . . . 42 Max Security . | . . . . . . . . . . . . . Peak Influence 2365 | . 156 . 106 65 . . 325 99 1032 2049 2365 2081 Initial 1442 | . . . . 24 . . . 99 . 497 1442 1241 Average 859 | . 75 . 40 12 . . 150 51 256 1491 1981 1748 Influence Increases 7407 | . 407 50 256 87 221 24 395 . 1528 2224 1003 1212 Destroy 0b10 Robot/C 3260 | . 260 40 180 40 160 20 220 . 440 940 580 380 Destroy 0b10 Robot/NC 190 | . 25 . 5 . . . 20 . 45 45 . 50 Destroy Leader 532 | . 56 10 50 10 10 . 32 . 116 156 20 72 Allied During Kill 1716 | . . . 15 15 36 4 78 . 601 538 230 199 Successful Hack 119 | . 29 . 6 22 . . . . . 62 . . Disable Machine 795 | . 15 . . . . . 45 . 180 210 . 345 Anti-Garrison Action 150 | . . . . . . . . . . . 150 . Destroy Structure 555 | . 22 . . . . . . . 146 198 23 166 Lose Combat Pursuer 90 | . . . . . 15 . . . . 75 . . Influence Decreases 5414 | . 266 191 202 141 128 117 110 285 512 1179 699 1584 Entered New Map 2566 | . . 69 . 30 . 19 . 186 . 519 619 1124 Time Decay 1833 | . 256 102 149 111 76 68 90 99 322 380 . 180 Lost Part 190 | . 10 20 . . . 10 . . 10 20 20 100 Lost Ally 825 | . . . 53 . 52 20 20 . 180 260 60 180 Squads Dispatched 43 | . 3 . 2 5 . . 1 . 5 15 . 12 Investigation 9 | . 2 . 2 . . . . . . 4 . 1 Extermination 2 | . . . . . . . . . 1 1 . . Reinforcement 12 | . 1 . . 2 . . 1 . 4 3 . 1 Assault 14 | . . . . 2 . . . . . 2 . 10 Garrison 6 | . . . . 1 . . . . . 5 . . Intercept . | . . . . . . . . . . . . . Searches Triggered . | . . . . . . . . . . . . . Construction Impeded 2 | . . . . . . . . . 1 1 . . Haulers Reinforced 2 | . . . . . . . 1 . . 1 . . Active Scanning Responses . | . . . . . . . . . . . . . Cargo Convoy Interrupts . | . . . . . . . . . . . . . Alert ID Control Effect 4 | . . . . . . . . . . . . 4 Stealth | -11 -10 -10 -8 -7 -7 -7 -6 -6 -6 -5 -5 -5 --------- Run | Yrd Mat Sub Mat Fac Low Low Fac Was Fac Fac Gar Fac Distress Signals 3 | . 1 . . . . . . . 1 1 . . Communications Jammed 34 | . . . . . . . . . . 34 . . Distress Signals 31 | . . . . . . . . . . 31 . . Times Spotted 235 | . 20 6 12 3 18 1 12 . 18 61 30 54 Peak Tracking Total 23 | . 5 3 3 1 7 1 3 . 5 13 11 23 Tactical Retreats 3 | . . . . . 1 . . . . 2 . . Traps | -11 -10 -10 -8 -7 -7 -7 -6 -6 -6 -5 -5 -5 ------- Run | Yrd Mat Sub Mat Fac Low Low Fac Was Fac Fac Gar Fac Traps Triggered 9 | . 2 . . 1 . . 1 . 1 . 4 . Indirectly . | . . . . . . . . . . . . . Trap Hack Attempts . | . . . . . . . . . . . . . Triggered . | . . . . . . . . . . . . . Disarmed . | . . . . . . . . . . . . . Reprogrammed . | . . . . . . . . . . . . . Reused . | . . . . . . . . . . . . . Traps Extracted . | . . . . . . . . . . . . . Installed . | . . . . . . . . . . . . . Triggered . | . . . . . . . . . . . . . Machines | -11 -10 -10 -8 -7 -7 -7 -6 -6 -6 -5 -5 -5 ---------- Run | Yrd Mat Sub Mat Fac Low Low Fac Was Fac Fac Gar Fac Machines Disabled 60 | . 1 4 . . . . 3 . 12 14 3 23 Max in Single Turn 14 | . 1 4 . . . . 2 . . 3 1 14 Garrison Access 2 | . . . 1 1 . . . . . . . . Garrison Relay 3 | . . . . . . . . . . . 3 . Machines Repaired . | . . . . . . . . . . . . . Machines Dismantled . | . . . . . . . . . . . . . Machines Sabotaged . | . . . . . . . . . . . . . Overloaded Fab Kills . | . . . . . . . . . . . . . Hacking | -11 -10 -10 -8 -7 -7 -7 -6 -6 -6 -5 -5 -5 --------- Run | Yrd Mat Sub Mat Fac Low Low Fac Was Fac Fac Gar Fac Machines Accessed 22 | . 4 1 3 3 1 . 1 . 1 7 . 1 Terminals 14 | . 4 . 2 1 1 . . . 1 4 . 1 Fabricators 2 | . . . . 1 . . . . . 1 . . Repair Stations 1 | . . . . . . . 1 . . . . . Recycling Units . | . . . . . . . . . . . . . Scanalyzers 2 | . . . . 1 . . . . . 1 . . Garrison Access 2 | . . . 1 . . . . . . 1 . . Total Hacks 66 | . 15 1 8 12 4 . 2 . 1 21 . 2 Successful 32 | . 8 1 4 7 4 . . . . 8 . . Failed 34 | . 7 . 4 5 . . 2 . 1 13 . 2 Catastrophic 7 | . 2 . . . . . . . 1 4 . . Database Lockouts . | . . . . . . . . . . . . . Manual 24 | . 8 . 3 7 . . . . 1 5 . . Terminals 46 | . 15 . 5 7 4 . . . 1 12 . 2 Fabricators 7 | . . . . 3 . . . . . 4 . . Repair Stations 2 | . . . . . . . 2 . . . . . Recycling Units . | . . . . . . . . . . . . . Scanalyzers 5 | . . . . 2 . . . . . 3 . . Garrison Access 5 | . . . 3 . . . . . . 2 . . Terminal Hacks 24 | . 7 1 3 5 4 . . . . 4 . . Record 4 | . . . . . 4 . . . . . . . Part Schematic 1 | . . . . 1 . . . . . . . . Robot Schematic 2 | . . . . . . . . . . 2 . . Robot Analysis 2 | . 2 . . . . . . . . . . . Prototype ID Bank 5 | . . . 2 2 . . . . . 1 . . Terminal Index 1 | . 1 . . . . . . . . . . . Alert Level 4 | . . . 1 2 . . . . . 1 . . Locate Traps 3 | . 3 . . . . . . . . . . . Zone Layout 1 | . 1 . . . . . . . . . . . Proto ID Catalog 1 | . . 1 . . . . . . . . . . Fabricator Hacks 3 | . . . . 1 . . . . . 2 . . Load Schematic 1 | . . . . . . . . . . 1 . . Build 2 | . . . . 1 . . . . . 1 . . Repair Station Hacks . | . . . . . . . . . . . . . Recycling Unit Hacks . | . . . . . . . . . . . . . Scanalyzer 1 | . . . . . . . . . . 1 . . Insert Component 1 | . . . . . . . . . . 1 . . Garrison Access Hacks 2 | . . . 1 . . . . . . 1 . . Unlock Access 1 | . . . . . . . . . . 1 . . Seal Access 1 | . . . 1 . . . . . . . . . Unauthorized Hacks 2 | . 1 . . 1 . . . . . . . . Terminals 1 | . 1 . . . . . . . . . . . Botnet 1 | . 1 . . . . . . . . . . . Fabricators 1 | . . . . 1 . . . . . . . . Prioritize 1 | . . . . 1 . . . . . . . . Repair Stations . | . . . . . . . . . . . . . Recycling Units . | . . . . . . . . . . . . . Scanalyzers . | . . . . . . . . . . . . . Garrison Access . | . . . . . . . . . . . . . Data Cores Recovered . | . . . . . . . . . . . . . Used . | . . . . . . . . . . . . . Hacking Detections 20 | . 4 . 2 3 1 . 1 . 1 7 . 1 Full Trace Events 10 | . 3 . 2 . . . . . . 4 . 1 Feedback Events . | . . . . . . . . . . . . . Feedback Blocked . | . . . . . . . . . . . . . Robot Schematics Acquired 2 | . . . . . . . . . . 2 . . Robots Built 4 | . . . . 2 . . . . . 2 . . Authchips . | . . . . . . . . . . . . . Time 233 | . . . . 81 . . . . . 152 . . Total Robot Build Rating 12 | . . . . 2 . . . . . 10 . . Part Schematics Acquired 1 | . . . . 1 . . . . . . . . Parts Built . | . . . . . . . . . . . . . Authchips . | . . . . . . . . . . . . . Time . | . . . . . . . . . . . . . Total Part Build Rating . | . . . . . . . . . . . . . Part Studies Acquired . | . . . . . . . . . . . . . Parts Repaired . | . . . . . . . . . . . . . Time . | . . . . . . . . . . . . . Parts Recycled . | . . . . . . . . . . . . . Recycled Matter . | . . . . . . . . . . . . . Retrieved Matter . | . . . . . . . . . . . . . Retrieved Components . | . . . . . . . . . . . . . Parts Scanalyzed 1 | . . . . . . . . . . 1 . . Part Schematics Acquired . | . . . . . . . . . . . . . Parts Damaged . | . . . . . . . . . . . . . Bothacking | -11 -10 -10 -8 -7 -7 -7 -6 -6 -6 -5 -5 -5 ------------ Run | Yrd Mat Sub Mat Fac Low Low Fac Was Fac Fac Gar Fac Used RIF Installer 2 | . . . . . . . . . . . 2 . Alert ID Control 1 | . . . . . . . . . . . 1 . Robots Hacked . | . . . . . . . . . . . . . Non-combat . | . . . . . . . . . . . . . Combat . | . . . . . . . . . . . . . Robot Hacks Applied . | . . . . . . . . . . . . . Relay Couplers Released 13 | . . . . 1 . . . . . . 12 . Machine Destruction 13 | . . . . 1 . . . . . . 12 . Attached 2 | . . . . . . . . . . . 1 1 Fabnet Peak Effective % . | . . . . . . . . . . . . . Robots Rewired 2 | . . . . . . . . . . . 2 . Allies Hacked 6 | . . . . . . . . . 1 1 . 4 Hacks Repelled . | . . . . . . . . . . . . . Allies | -11 -10 -10 -8 -7 -7 -7 -6 -6 -6 -5 -5 -5 -------- Run | Yrd Mat Sub Mat Fac Low Low Fac Was Fac Fac Gar Fac Total Allies 26 | . . . . 2 . . . 20 . 2 2 . Largest Group 20 | . . . . 2 . . . 20 20 6 2 2 Highest-Rated Group 764 | . . . . 16 . . . 764 764 212 59 59 Highest-Rated Ally 50 | . . . . 8 . . . 50 50 50 30 30 Total Orders 11 | . . . 2 2 . . . . 2 1 1 3 STAY 1 | . . . . . . . . . . 1 . . ROAM 3 | . . . 1 2 . . . . . . . . FOLLOW 1 | . . . . . . . . . . . . 1 AID 3 | . . . . . . . . . . . 1 2 DROP 3 | . . . 1 . . . . . 2 . . . Ally Attacks 579 | . . . 22 11 28 7 41 . 178 125 75 92 Total Damage 16814 | . . . 461 282 592 147 1087 . 4946 3649 2443 3207 Kills 132 | . . . 10 2 6 1 13 . 29 34 19 18 Allies Corrupted 8 | . . . . . . . . . 1 4 . 3 Allies Melted . | . . . . . . . . . . . . . Borg Created 39 | . . . 6 2 8 1 . . 2 13 4 3 Largest Collective 6 | . . . 2 4 4 4 . . 5 5 6 6 Intel | -11 -10 -10 -8 -7 -7 -7 -6 -6 -6 -5 -5 -5 ------- Run | Yrd Mat Sub Mat Fac Low Low Fac Was Fac Fac Gar Fac Active Infowar (turns) 280 | . 159 . . . . . . . . 121 . . Seismic 159 | . 159 . . . . . . . . . . . Jamming 121 | . . . . . . . . . . 121 . . Robot Analysis Total 2 | . 2 . . . . . . . . . . . Derelict Logs Recovered 2 | . . 1 . . 1 . . . . . . . Drone Launches . | . . . . . . . . . . . . . Drone Recoveries . | . . . . . . . . . . . . . Exploration | -11 -10 -10 -8 -7 -7 -7 -6 -6 -6 -5 -5 -5 ------------- Run | Yrd Mat Sub Mat Fac Low Low Fac Was Fac Fac Gar Fac Turns Passed 6438 | 4 620 303 507 420 476 415 313 207 765 898 865 645 Spaces Moved 3961 | 4 455 429 221 260 247 192 164 115 469 522 547 336 Core 1 | . . . . . . . . . . . . 1 Treads . | . . . . . . . . . . . . . Legs 3425 | 4 321 28 221 260 247 192 164 115 469 522 547 335 Wheels . | . . . . . . . . . . . . . Hover 535 | . 134 401 . . . . . . . . . . Flight . | . . . . . . . . . . . . . Fastest Speed 50 | 120 56 56 200 123 126 126 126 126 133 122 120 50 Average Speed 126 | 120 101 60 200 125 126 191 175 130 134 124 121 137 Slowest Speed 205 | 120 190 130 200 126 126 200 200 200 205 133 175 180 Overloaded Moves . | . . . . . . . . . . . . . Propulsion Burnouts . | . . . . . . . . . . . . . Robots Hopped . | . . . . . . . . . . . . . Potential Cave-ins 3 | . . . . . . . . . . 3 . . Cave-ins Triggered . | . . . . . . . . . . . . . Exploration Rate (%) 31 | 2 77 38 21 11 43 36 5 77 15 17 57 14 Regions Visited 12 Branch Regions 3 Pre-discovered Areas 1 | . . 1 . . . . . . . . . . Known Exits Taken 2 | . . . . . . . . . 1 1 . . Unknown Exits Taken 7 | 1 1 1 1 1 1 1 . . . . . . Scrap Searched 1 | . . . . . 1 . . . . . . . Spaces Dug . | . . . . . . . . . . . . . Terrain Destroyed 245 | . 18 20 . . . . . . . 89 21 97 Melee . | . . . . . . . . . . . . . Projectile 5 | . . . . . . . . . . . . 5 AOE 240 | . 18 20 . . . . . . . 89 21 92 Terrain Rammed . | . . . . . . . . . . . . . Walls Destroyed . | . . . . . . . . . . . . . Machines Disabled . | . . . . . . . . . . . . . Actions | -11 -10 -10 -8 -7 -7 -7 -6 -6 -6 -5 -5 -5 --------- Run | Yrd Mat Sub Mat Fac Low Low Fac Was Fac Fac Gar Fac Total 5045 | 3 531 452 275 347 388 239 183 171 592 675 720 469 Wait 614 | . . . 33 72 104 47 5 48 92 52 93 68 Move 3951 | 3 454 428 220 259 246 191 164 114 468 522 546 336 Hop . | . . . . . . . . . . . . . Pick Up 29 | . 6 2 4 . 2 . 1 1 3 3 7 . Fast Attach 30 | . 4 1 3 . 2 . 3 1 5 5 4 2 Attach 14 | . 1 1 1 2 . . 1 1 3 1 1 2 Detach 13 | . 3 . . . . . 2 1 2 1 2 2 Swap 45 | . 12 1 . 2 1 . 2 2 4 8 5 8 Drop 51 | . 10 7 4 2 . . . 2 6 6 8 6 Fire 188 | . 41 12 . . . . 5 . 7 60 22 41 Melee . | . . . . . . . . . . . . . Ram . | . . . . . . . . . . . . . Kick 36 | . . . . 8 25 . . . . 3 . . Crush . | . . . . . . . . . . . . . Escape Stasis 10 | . . . . . . . . . . . 10 . Rewire 24 | . . . 4 . . . . 1 . 1 18 . Trap . | . . . . . . . . . . . . . Miscellaneous 40 | . . . 6 2 8 1 . . 2 13 4 4 Route ------- -11/Scrapyard -10/Materials (discovered 4 exits: [*Mat x2] / [*Min] / *Sub) -10/Subcaves -8/Materials -7/Factory -7/Lower Caves -7/Lower Caves (discovered 2 exits: *Fac / [*Zio]) -6/Factory (discovered 2 exits: Fac / Low) -6/Waste -6/Factory -5/Factory -5/Garrison -5/Factory History --------- Turn | Location | Event 1 | -11/Scrapyard | Discovered new exit (range 1) 5 | -11/Scrapyard | Entered Materials 253 | -10/Materials | Discovered new exit (range 16) 309 | -10/Materials | Build established: Mutant 431 | -10/Materials | Discovered new exit (range 16) 509 | -10/Materials | Discovered new exit (range 15) 621 | -10/Materials | Discovered new exit (range 8) 625 | -10/Materials | Entered Subcaves 626 | -10/Subcaves | Approached by a straggling Scientist 628 | -10/Subcaves | Learned Materials terminal intel 630 | -10/Subcaves | Learned location of Zion (-7) 630 | -10/Subcaves | Met a Zionite searching for "candidates" 648 | -10/Subcaves | Shifting Twisted Machinery released Sub. Machine Gun 649 | -10/Subcaves | Shifting Twisted Machinery released Sub. Monowheel 666 | -10/Subcaves | Lost 3 allies 706 | -10/Subcaves | Core integrity fell below 50% 738 | -10/Subcaves | Ambushed by Subdweller buried in earth 743 | -10/Subcaves | Core integrity fell below 20% 831 | -10/Subcaves | Shifting Twisted Machinery released Lgt. Humpback 833 | -10/Subcaves | Shifting Twisted Machinery released Barrage Gun 842 | -10/Subcaves | Discovered new exit (range 8) 877 | -10/Subcaves | Visited 4L-MR0's lab 884 | -10/Subcaves | Found Prototype Special Melee Weapon 891 | -10/Subcaves | Found Cargo Legs 893 | -10/Subcaves | Attached Cargo Legs, gained temporary slots: Utility x2 928 | -10/Subcaves | Entered Materials 928 | -8/Materials | Evolved 4 slots: Utility x1, Weapon x3 929 | -8/Materials | Loaded intel: 12 terminal locations 930 | -8/Materials | Identified 1B-0RG's Assimilator 971 | -8/Materials | Assimilating Soldier 3a into Collective. 978 | -8/Materials | Assimilating Trooper 3a into Collective. 1017 | -8/Materials | Assimilating Transporter 3a into Collective. 1239 | -8/Materials | Assimilating Engineer 3a into Collective. 1347 | -8/Materials | Assimilating Transporter 3b into Collective. 1352 | -8/Materials | Assimilating Trooper 3b into Collective. 1362 | -8/Materials | Discovered new exit (range 19) 1435 | -8/Materials | Entered Factory 1435 | -7/Factory | Accompanied by 2 allies 1435 | -7/Factory | Evolved 2 slots: Propulsion x2 1568 | -7/Factory | Fabricated R-06 Scavenger (x2) 1618 | -7/Factory | Assimilating Administrator 4a into Collective. 1649 | -7/Factory | Allied Derelicts emerged from ambush trap array 1660 | -7/Factory | Assimilating JJ-IFU(g) into Collective. 1708 | -7/Factory | Garrison activated, responded to threat 1754 | -7/Factory | Lost 3 allies 1829 | -7/Factory | Discovered new exit (range 16) 1855 | -7/Factory | Entered Lower Caves 1855 | -7/Lower Caves | Accompanied by 2 allies 1860 | -7/Lower Caves | Attracted the attention of an 0b10 checkpoint 1876 | -7/Lower Caves | Assimilating Trooper 4a into Collective. 1896 | -7/Lower Caves | Assimilating Guardian 4a into Collective. 2029 | -7/Lower Caves | Attracted the attention of an 0b10 base 2034 | -7/Lower Caves | Assimilating GT-015(r) into Collective. 2057 | -7/Lower Caves | Assimilating Sentinel 4a into Collective. 2060 | -7/Lower Caves | Assimilating Trooper 4b into Collective. 2074 | -7/Lower Caves | Assimilating Trooper 4c into Collective. 2084 | -7/Lower Caves | Lost 4 allies 2101 | -7/Lower Caves | Learned 8 Factory zone layouts 2102 | -7/Lower Caves | Learned Factory trap positions 2102 | -7/Lower Caves | Learned Armory terminal intel 2102 | -7/Lower Caves | Learned location of 1 exit from Research 2202 | -7/Lower Caves | Assimilating Soldier 4a into Collective. 2276 | -7/Lower Caves | Assimilating Trooper 4d into Collective. 2318 | -7/Lower Caves | Discovered new exit (range 6) 2331 | -7/Lower Caves | Entered another Lower Caves area 2331 | -7/Lower Caves | Accompanied by 4 allies 2344 | -7/Lower Caves | Discovered new exit (range 5) 2360 | -7/Lower Caves | Attracted the attention of an 0b10 checkpoint 2463 | -7/Lower Caves | Encountered a Warlord checkpoint 2468 | -7/Lower Caves | Discovered new exit (range 21) 2586 | -7/Lower Caves | Assimilating R1-YZW(M) into Collective. 2746 | -7/Lower Caves | Entered Factory 2746 | -6/Factory | Accompanied by 4 allies 2746 | -6/Factory | Evolved 2 slots: Utility x1, Weapon x1 2747 | -6/Factory | Identified exit to Lower Caves 2747 | -6/Factory | Identified exit to Factory 2748 | -6/Factory | Loaded intel: 88 trap records 3059 | -6/Factory | Sucked down chute 3059 | -6/Factory | Entered Waste 3060 | -6/Waste | Joined by Warlord forces that had cleared the area 3104 | -6/Waste | 3 allies followed down the chute 3211 | -6/Waste | Discovered new exit (range 11) 3266 | -6/Waste | Entered Factory 3266 | -6/Factory | Accompanied by 23 allies 3651 | -6/Factory | Assimilating Conveyor 5a into Collective. 3654 | -6/Factory | Lost 4 allies 3793 | -6/Factory | Assimilating Conveyor 5b into Collective. 3956 | -6/Factory | P-60 Hacker assimilated allied 7Y-LU9(g) 3989 | -6/Factory | Discovered exit to Factory (range 17) 4028 | -6/Factory | Lost 5 allies 4031 | -6/Factory | Entered another Factory area 4031 | -5/Factory | Accompanied by 10 allies 4031 | -5/Factory | Evolved 2 slots: Propulsion x1, Utility x1 4197 | -5/Factory | Garrison activated, responded to threat 4204 | -5/Factory | Lost 3 allies 4235 | -5/Factory | Spotted B-75 Beast 4253 | -5/Factory | Assimilating Beast 6a into Collective. 4331 | -5/Factory | First assault squad dispatched 4424 | -5/Factory | Assimilating Slayer 6a into Collective. 4528 | -5/Factory | Assimilating Archangel 6a into Collective. 4531 | -5/Factory | Assimilating Veteran 6a into Collective. 4535 | -5/Factory | Assimilating Warrior 6a into Collective. 4543 | -5/Factory | Assimilating Fighter 6a into Collective. 4547 | -5/Factory | Assimilating Warrior 6b into Collective. 4561 | -5/Factory | Assimilating Sage 6a into Collective. 4574 | -5/Factory | Lost 3 allies 4633 | -5/Factory | Fabricated H-66 Slayer (x2) 4647 | -5/Factory | Assimilating Slayer 6b into Collective. 4744 | -5/Factory | Assimilating Imp 6a into Collective. 4752 | -5/Factory | P-70 Sage assimilated allied Slayer 6c 4776 | -5/Factory | Lost 3 allies 4800 | -5/Factory | Assimilating Engineer 6a into Collective. 4803 | -5/Factory | Garrison activated, responded to threat 4844 | -5/Factory | Assimilating Administrator 6a into Collective. 4903 | -5/Factory | Assimilating Sentinel 6a into Collective. 4929 | -5/Factory | Identified exit to Garrison 4929 | -5/Factory | Entered Garrison 4929 | -5/Garrison | Accompanied by 4 allies 4966 | -5/Garrison | Installed Relay Interface Framework 5001 | -5/Garrison | Triggered checkpoint 5006 | -5/Garrison | Assimilating Sage 6b into Collective. 5042 | -5/Garrison | Garrison Relay disabled 5109 | -5/Garrison | Triggered checkpoint 5113 | -5/Garrison | Assimilating Slayer 6d into Collective. 5145 | -5/Garrison | Garrison Relay disabled 5254 | -5/Garrison | Triggered checkpoint 5300 | -5/Garrison | Destroyed 7 combat bots 5309 | -5/Garrison | Triggered checkpoint 5336 | -5/Garrison | System corruption reached 10% 5377 | -5/Garrison | Discovered new exit (range 9) 5411 | -5/Garrison | Triggered checkpoint 5424 | -5/Garrison | Assimilating Sentinel 6b into Collective. 5445 | -5/Garrison | Expanded RIF knowledge: Alert ID Control 5574 | -5/Garrison | Garrison Relay disabled 5659 | -5/Garrison | Assimilating Smith 6a into Collective. 5794 | -5/Garrison | Entered Factory 5794 | -5/Factory | Accompanied by 7 allies 5854 | -5/Factory | Spotted B-75 Beast 5883 | -5/Factory | Allies destroyed B-75 Beast 6040 | -5/Factory | Assimilating Technician 6a into Collective. 6094 | -5/Factory | First assault squad dispatched 6155 | -5/Factory | Core integrity fell below 50% 6163 | -5/Factory | High security lockdown imminent 6167 | -5/Factory | Assimilating Sage 6c into Collective. 6201 | -5/Factory | Lost 6 allies 6243 | -5/Factory | High security lockdown engaged 6294 | -5/Factory | Assimilating Chaingunner 6a into Collective. 6417 | -5/Factory | Lost 3 allies 6438 | -5/Factory | Core integrity fell below 20% 6438 | -5/Factory | System corruption reached 30% 6439 | -5/Factory | Destroyed by H-66 Slayer with Heavy Assault Rifle Last Messages --------------- 06435_ Penetrated by Slug. 06435_ Thunder Leg destroyed. 06435_ Penetrated by Slug. 06435_ Slug penetrates M-28 Smith. 06436_ Scanalyzer disabled. 06436_ Penetrated by Slug. 06436_ Dropped Matter Compressor. 06436_ Com. Matter Pod destroyed. 06436_ Adv. VSS Leg destroyed. 06436_ Carbon-fiber Leg destroyed. 06436_ Hvy. Phase Cannon destroyed. 06436_ M-28 Smith repairs G-50 Soldier. 06437_ Relay Coupler [NC] destroyed. 06438_ DCAC0OX&<9LKWE#D 06438_ Extracted 5 matter. 06438_ Dropped F-cell Engine. 06438_ Dropped Relay Coupler [Duelist]. 06438_ Sml. Storage Unit destroyed. 06438_ Penetrated by Slug. 06439_ Slug penetrates Earth. Map ----- +----------------------------------------------------+ | ?????????????????????????????????????????????????? | | ?????????????????????????????????????????????????? | | ?????????????????????????????????????????????????? | | ?????????????????????????????????????????????????? | | ?????????????????????????????????????????????????? | | ?????????????????????????????????????????????????? | | ?????????????????????????????????????????????????? | | ?????????????????????????????????????????????????? | | ?????????????????????????????????????????????????? | | ?????????????????????????????????????????????????? | | ?????????????????????????????????????????????????? | | ?????????????????????????????????????????????????? | | ?????????????????????????????????????????????????? | | ?????????????????????????????????????????????????? | | ?????????????????????????????????????????????????? | | ?????????????????????????????????????????????????? | | ?????????????????????????????????????????????????? | | ?????????????????????????????????????????????????? | | ??????????????????#+#????????????????????????????? | | ?????????????????? ????????????????????????????? | | ??????????????????# #####????????????????????????? | | ??????????????????# ## #?##?????????????????????? | | ??????????????????# ## ## #?#???????????????????? | | ??????????????????# # # #?????????????###+### | | ????????????????###xh #;#????????#+#+## # | | ????????????????# p m @ ########## [ # | | ????????????????# ]p !! ! " | | ????????????????# * ### ##### # | | ????????????????# !! #+##########] # | | ????????????????# #???###!### | | ????????????????# #????#*%=#? | | ????????? ???# "" [ !!#????#|=%#? | | ?????????? ??# """ ! #????#=[##? | | ?????????? ??# "S #????## #?? | | ??????????"" ?# g """ % " ####### ### | | ???????? """ ?# gplg%%!% ""* "%"+ | | ?????""" """ # hhxx m ! # %%[ " # | | ???? ###g;%gg # #### % | | ???????? """ l gm ^ | | ???????? """ %" ^ | | ????? """ % ^ | | ????? ^ | | ????? ^ | | ?????+#############+###### # ############### | | ????????????????? ?? ### ???????????? | | ??????????????? """ "" ??# #??????????? | | ?????????????# """ """ ??#! [ #??????????? | | ?????????????# """ F" #?# !#??????????? | | ?????????????# """ ??# #??????????? | | ?????????????# """ "" ??# ! ! #??????????? | +----------------------------------------------------+ Best States ------------- Heat Dissipation 40 Energy Generation 19 Energy Capacity 850 Matter Stores 550 Matter Capacity 700 Sight Range 16 Terrain Scan Density 10 Jamming Range 12 Armor Coverage 305 Propulsion Shielding 66 Utility Shielding 90 Weapon Cycling 20 Evasion (%) 80 Targeting Accuracy 6 Offensive Hacking 10 Relay Coupler Types 1 Relay Coupler Value 16 Item Schematics ----------------- Lightning Gun | -7/Factory | Hacked Robot Schematics ------------------ H-66 Slayer | -5/Factory | Hacked S-27 Virus | -5/Factory | Hacked Fabricated ------------ R-06 Scavenger | x2 | -7/Factory | Preloaded H-66 Slayer | x2 | -5/Factory Repaired ---------- Nothing Studied --------- None Alien Tech Used ----------------- None Achievements -------------- I, Locutus Challenges ------------ None Game ------ Seed ActuatorMetafieldTether Manual? 0 Play Time 01:01:30 Cumulative 1249.4 hours Start 2026.02.10 @ 11:33:15 End 2026.02.12 @ 21:11:21 Sessions 7 Manual Loads 0 Difficulty Rogue Special Mode None Game No. 1535 Rogue 1251 Adventurer 124 Explorer 160 Win Type - Total 60 Types 46/0/8/4/1/0/0/1/0/0 Lore% 93 Gallery% 83 Achievement% 67 Wizard Run 0 Options --------- Layout 0 ASCII 0 Keyboard 1 Movement Numpad Keybinds 0 Fullscreen 2 Font 18/X11 Map View 76x50 Zoom Use 1% Tactical HUD 1 Map Filters NONE Filters NONE Steam 1 RUN: 4d458d3d-15f5-482f-bee4-902cf9c55428